bitfinex-derivatives/quotes_BTCF0:USTF0_20241103
["timestamp","ask_amount","ask_price","bid_price","bid_amount"]
[1730657850187,0.53443206,68335.0,68334.0,0.033]
[1730657851296,0.002,68335.0,68334.0,0.106195]
[1730657851585,0.170669,68341.0,68338.0,0.07319]
[1730657851785,0.45923806,68345.0,68338.0,0.07319]
[1730657851786,0.073189,68340.0,68338.0,0.07319]
[1730657852390,0.07319,68339.0,68338.0,0.07319]
[1730657852789,0.07319,68339.0,68338.0,0.13149234]
[1730657852982,0.07319,68339.0,68338.0,0.07419]
[1730657853385,0.13778415,68339.0,68338.0,0.07419]
[1730657853693,0.13878415,68339.0,68338.0,0.13354119]
[1730657853883,0.13878415,68339.0,68338.0,0.07519]
[1730657854285,0.13878415,68339.0,68338.0,0.07419]
[1730657854486,0.13978415,68339.0,68338.0,0.07519]
[1730657855293,0.13978415,68339.0,68338.0,0.10392244]
[1730657855591,0.06659415,68339.0,68338.0,0.10392244]
[1730657856397,0.06659415,68339.0,68338.0,0.19453576]
[1730657856693,0.06659415,68339.0,68338.0,0.10392244]
[1730657857292,0.06659415,68339.0,68338.0,0.19458693]
[1730657857490,0.13978415,68339.0,68338.0,0.12139693]
[1730657860798,0.06659415,68339.0,68338.0,0.19458793]
[1730657864800,0.002,68339.0,68338.0,0.19458793]
[1730657865104,0.002,68339.0,68338.0,0.63358793]
[1730657865599,0.002,68339.0,68338.0,0.63371548]
[1730657867215,0.002,68339.0,68338.0,0.7418685]
[1730657867810,0.06459415,68349.0,68338.0,0.7418685]
[1730657868107,0.42735415,68352.0,68347.0,0.07307265]
[1730657868409,0.49857015,68352.0,68351.0,0.05845701]
[1730657869507,0.49957015,68352.0,68351.0,0.05845701]
[1730657869903,0.49957015,68352.0,68351.0,0.06045701]
[1730657870405,0.50057015,68352.0,68351.0,0.06145701]
[1730657871903,0.50057015,68352.0,68351.0,0.003]
[1730657873296,0.53440452,68352.0,68351.0,0.003]
[1730657875704,0.63283304,68352.0,68351.0,0.003]
[1730657876006,0.073183,68345.0,68344.0,0.05845701]
[1730657876203,0.17161252,68344.0,68343.0,0.05845701]
[1730657876515,0.23421252,68344.0,68343.0,0.05845701]
[1730657877513,0.23421252,68344.0,68336.0,0.07307265]
[1730657877809,0.073194,68335.0,68334.0,0.001]
[1730657878105,0.170514,68335.0,68334.0,0.001]
[1730657879402,0.171514,68335.0,68334.0,0.001]
[1730657879603,0.172514,68335.0,68334.0,0.002]
[1730657880710,0.20022357,68335.0,68334.0,0.002]
[1730657882002,0.19922357,68335.0,68334.0,0.002]
[1730657882203,0.20022357,68335.0,68334.0,0.002]
[1730657883010,0.56102357,68335.0,68334.0,0.002]
[1730657883905,0.20022357,68335.0,68334.0,0.002]
[1730657884110,0.56102357,68335.0,68334.0,0.002]
[1730657886713,0.002,68335.0,68334.0,0.53942852]
[1730657886920,0.263,68341.0,68340.0,0.073189]
[1730657887099,0.263,68341.0,68340.0,0.14620965]
[1730657887297,0.073188,68341.0,68340.0,0.16324182]
[1730657887612,0.073188,68341.0,68340.0,0.09005282]
[1730657888111,0.074188,68341.0,68340.0,0.09105282]
[1730657888311,0.074188,68341.0,68340.0,0.16406953]
[1730657888608,0.074188,68341.0,68340.0,0.001]
[1730657888809,0.075188,68341.0,68340.0,0.015]
[1730657890002,0.075188,68341.0,68340.0,0.0477]
[1730657890417,0.075188,68341.0,68340.0,0.12071671]
[1730657892111,0.075188,68341.0,68340.0,0.21167019]
[1730657892313,0.075188,68341.0,68340.0,0.12071671]
[1730657893313,0.075188,68341.0,68340.0,0.015]
[1730657895821,0.435988,68341.0,68340.0,0.015]
[1730657896019,0.874948,68341.0,68334.0,0.001]
[1730657896211,0.53242252,68335.0,68334.0,0.001]
[1730657898410,0.53242252,68335.0,68334.0,0.015]
[1730657899020,0.53342252,68335.0,68334.0,0.016]
[1730657899314,0.53442252,68335.0,68334.0,0.015]
[1730657899618,0.53442252,68335.0,68334.0,0.014]
[1730657900016,0.435994,68335.0,68334.0,0.014]
[1730657900216,0.002,68335.0,68334.0,0.087195]
[1730657900427,0.075194,68335.0,68334.0,0.16021171]
[1730657900614,0.075194,68335.0,68334.0,0.25134084]
[1730657901210,0.075194,68335.0,68334.0,0.17832413]
[1730657901421,0.002,68335.0,68334.0,0.17832413]
[1730657901722,0.075194,68335.0,68334.0,0.17832413]
[1730657903523,0.075194,68335.0,68334.0,0.2058978]
[1730657907828,0.075194,68335.0,68334.0,0.10512913]
[1730657908332,0.075194,68335.0,68334.0,0.014]
[1730657915119,0.00219537,68349.0,68334.0,1.1138]
[1730657915331,0.07537437,68349.0,68347.0,0.073181]
[1730657915529,0.073181,68347.0,68346.0,0.07304605]
[1730657915727,0.073181,68347.0,68345.0,0.07304605]
[1730657917320,0.09842852,68348.0,68344.0,0.07380605]
[1730657917624,0.073188,68341.0,68340.0,0.07305335]
[1730657917825,0.09842852,68340.0,68339.0,0.10148746]
[1730657918020,0.16142852,68340.0,68339.0,0.02843411]
[1730657918618,0.073192,68337.0,68334.0,0.43485335]
[1730657918937,0.17162252,68335.0,68334.0,0.43485335]
[1730657919234,0.17162252,68335.0,68334.0,0.52598646]
[1730657920327,0.17162252,68335.0,68334.0,0.52798646]
[1730657920328,0.17262252,68335.0,68334.0,0.52798646]
[1730657920731,0.17262252,68335.0,68334.0,0.52800729]
[1730657921436,0.17362252,68335.0,68334.0,0.54100729]
[1730657921628,0.17362252,68335.0,68334.0,0.18020729]
[1730657921943,0.17362252,68335.0,68334.0,0.54100729]
[1730657922139,0.17362252,68335.0,68334.0,0.18020729]
[1730657922329,0.17362252,68335.0,68334.0,0.016]
[1730657927627,0.17362252,68335.0,68334.0,0.08905335]
[1730657927830,0.17362252,68335.0,68334.0,0.016]
[1730657928534,0.17362252,68335.0,68334.0,0.08905335]
[1730657928730,0.17362252,68335.0,68334.0,0.016]
[1730657929230,0.17362252,68335.0,68334.0,0.18043898]
[1730657929536,0.075194,68335.0,68334.0,0.18043898]
[1730657930223,0.075194,68335.0,68334.0,0.10738563]
[1730657930421,0.075194,68335.0,68334.0,0.016]
[1730657938642,0.075194,68335.0,68334.0,0.18048516]
[1730657939234,0.075194,68335.0,68334.0,0.0891318]
[1730657939843,0.075194,68335.0,68334.0,0.18048561]
[1730657940144,0.075194,68335.0,68334.0,0.0891318]
[1730657940346,0.075194,68335.0,68334.0,0.1804843]
[1730657941137,0.075194,68335.0,68334.0,0.0891318]
[1730657941335,0.075194,68335.0,68334.0,0.016]
[1730657941544,0.075194,68335.0,68334.0,0.05850094]
[1730657941745,0.073195,68334.0,68333.0,0.05850094]
[1730657941936,0.073196,68333.0,68332.0,0.05850094]
[1730657942337,0.073197,68332.0,68331.0,0.05850094]
[1730657942742,0.512237,68332.0,68331.0,0.05850094]
[1730657942943,0.43904,68332.0,68330.0,0.00219498]
[1730657943142,0.43904,68332.0,68326.0,0.0731318]
[1730657943143,0.13779745,68331.0,68323.0,0.0731318]
[1730657943341,0.3608,68325.0,68323.0,0.0731318]
[1730657943540,0.200766,68324.0,68323.0,0.07310749]
[1730657943853,0.073207,68323.0,68322.0,0.07310749]
[1730657944042,0.13780645,68323.0,68322.0,0.16459862]
[1730657944354,0.13780645,68323.0,68322.0,0.07310749]
[1730657945067,0.073197,68333.0,68331.0,0.073198]
[1730657945259,0.073194,68336.0,68335.0,0.073192]
[1730657946058,0.00219589,68339.0,68332.0,0.0302]
[1730657946257,0.00219589,68339.0,68333.0,0.16409477]
[1730657946567,0.073196,68333.0,68332.0,0.10330306]
[1730657946755,0.073196,68333.0,68332.0,0.19435445]
[1730657947267,0.073196,68333.0,68332.0,0.12125139]
[1730657948352,0.074196,68333.0,68332.0,0.12225139]
[1730657948768,0.075196,68333.0,68332.0,0.12225139]
[1730657951674,0.075196,68333.0,68332.0,0.19544839]
[1730657965163,0.075196,68333.0,68332.0,0.09205139]
[1730657965369,0.13980198,68333.0,68332.0,0.09205139]
[1730657968467,0.13980198,68333.0,68332.0,0.001]
[1730657977783,0.20440796,68333.0,68332.0,0.001]
[1730657979291,0.20440796,68333.0,68332.0,0.002]
[1730657979478,0.20440796,68333.0,68332.0,0.003]
[1730657980183,0.20340796,68333.0,68332.0,0.001]
[1730657980488,0.073218,68314.0,68313.0,0.434017]
[1730657981686,0.073218,68314.0,68313.0,0.3608]
[1730657981883,0.074218,68314.0,68313.0,0.39128142]
[1730657982271,0.002,68314.0,68313.0,0.39128142]
[1730657982475,0.073207,68324.0,68323.0,0.073206]
[1730657982687,0.073207,68324.0,68323.0,0.13781198]
[1730657984590,0.074207,68324.0,68323.0,0.074206]
[1730657985282,0.075207,68324.0,68323.0,0.074206]
[1730657986891,0.075207,68324.0,68323.0,0.10299376]
[1730657991484,0.075207,68324.0,68323.0,0.21189593]
[1730657991688,0.075207,68324.0,68323.0,0.30325974]
[1730657993092,0.075207,68324.0,68323.0,0.19435757]
[1730657995789,0.075207,68324.0,68323.0,0.1941239]
[1730657999096,0.075207,68324.0,68323.0,0.30280161]
[1730658000299,0.075207,68324.0,68323.0,0.22959561]
[1730658000496,0.075207,68324.0,68323.0,0.1209179]
[1730658000700,0.002,68324.0,68323.0,0.3027899]
[1730658001000,0.002,68324.0,68323.0,0.53120856]
[1730658001191,0.002,68324.0,68323.0,0.42867914]
[1730658001592,0.17364926,68324.0,68323.0,0.09213014]
[1730658001994,0.17364926,68324.0,68323.0,0.07417442]
[1730658002187,0.17364926,68324.0,68323.0,0.09235391]
[1730658002694,0.002,68324.0,68323.0,0.16556091]
[1730658002893,0.002,68324.0,68323.0,0.16513315]
[1730658003094,0.002,68324.0,68323.0,0.27345021]
[1730658003505,0.002,68324.0,68323.0,0.16513315]
[1730658003695,0.002,68324.0,68323.0,0.27345418]
[1730658004205,0.001,68324.0,68323.0,0.27345418]
[1730658004501,0.002,68324.0,68323.0,0.27345418]
[1730658004996,0.00219589,68339.0,68336.0,0.073193]
[1730658005195,0.073191,68338.0,68337.0,0.07314425]
[1730658005392,0.073191,68338.0,68337.0,0.15519354]
[1730658006596,0.073191,68338.0,68337.0,0.22827788]
[1730658006803,0.073191,68338.0,68337.0,0.15519354]
[1730658006987,0.073191,68338.0,68337.0,0.18347689]
[1730658007398,0.073191,68338.0,68337.0,0.1833454]
[1730658007605,0.073191,68338.0,68337.0,0.16593589]
[1730658007807,0.074191,68338.0,68337.0,0.25838673]
[1730658008291,0.075191,68338.0,68337.0,0.26338673]
[1730658008490,0.074191,68338.0,68337.0,0.17393589]
[1730658008793,0.074191,68338.0,68337.0,0.16893589]
[1730658008989,0.075191,68338.0,68337.0,0.17493589]
[1730658009202,0.002,68338.0,68337.0,0.24812789]
[1730658009606,0.002,68338.0,68337.0,0.17506295]
[1730658011099,0.002,68338.0,68337.0,0.33854596]
[1730658012012,0.002,68338.0,68337.0,0.27395836]
[1730658015802,0.002,68338.0,68337.0,0.27407705]
[1730658017395,0.002,68338.0,68337.0,0.18354029]
[1730658018498,0.075191,68338.0,68337.0,0.11034829]
[1730658018697,0.075191,68338.0,68310.0,0.07322]
[1730658018698,0.073193,68336.0,68335.0,0.07306494]
[1730658018895,0.1377816,68335.0,68334.0,0.07306494]
[1730658019102,0.1377816,68335.0,68334.0,0.1635005]
[1730658020503,0.073196,68334.0,68330.0,0.434759]
[1730658020802,0.0665876,68335.0,68331.0,0.09035473]
[1730658021109,0.073196,68333.0,68332.0,0.1634708]
[1730658021297,0.073196,68333.0,68332.0,0.0730231]
[1730658021605,0.002,68335.0,68331.0,0.05842392]
[1730658021606,0.073197,68332.0,68331.0,0.05842392]
[1730658021902,0.0732,68330.0,68327.0,0.0730231]
[1730658022302,0.0732,68330.0,68327.0,0.10114052]
[1730658022695,0.0732,68330.0,68328.0,0.0730231]
[1730658022903,0.0732,68330.0,68327.0,0.0730231]
[1730658023610,0.0742,68330.0,68327.0,0.0730231]
[1730658024307,0.0742,68330.0,68328.0,0.0645876]
[1730658024505,0.0752,68330.0,68328.0,0.1377886]
[1730658025291,0.0752,68330.0,68328.0,0.2108117]
[1730658026908,0.002,68330.0,68329.0,0.0732]
[1730658027205,0.002,68330.0,68329.0,0.1462231]
[1730658028499,0.002,68330.0,68329.0,0.23674781]
[1730658028702,0.002,68330.0,68329.0,0.60276471]
[1730658029100,0.002,68330.0,68329.0,0.71065852]
[1730658029707,0.002,68330.0,68329.0,0.77524612]
[1730658029898,0.002,68330.0,68329.0,0.71065852]
[1730658030309,0.002,68330.0,68329.0,0.71037672]
[1730658031907,0.002,68330.0,68329.0,0.27133672]
[1730658034916,0.073175,68354.0,68329.0,1.20102992]
[1730658035104,0.074619,68349.0,68348.0,0.13775015]
[1730658035305,0.073179,68349.0,68348.0,0.15525226]
[1730658035808,0.073179,68349.0,68348.0,0.12309912]
[1730658036115,0.073179,68349.0,68348.0,0.0645876]
[1730658036515,0.073179,68349.0,68348.0,0.12308629]
[1730658037316,0.073179,68349.0,68348.0,0.05849869]
[1730658037515,0.07318,68348.0,68347.0,0.05849869]
[1730658038632,0.07318,68348.0,68347.0,0.05949869]
[1730658039733,0.07318,68348.0,68347.0,0.001]
[1730658040335,0.07318,68348.0,68347.0,0.05949869]
[1730658040539,0.07318,68348.0,68347.0,0.001]
[1730658043042,0.36228,68364.0,68347.0,0.909981]
[1730658043241,0.3608,68364.0,68363.0,0.17157749]
[1730658043539,0.433956,68371.0,68366.0,0.07316]
[1730658044036,0.433956,68371.0,68369.0,0.05844592]
[1730658044037,0.073157,68370.0,68369.0,0.05844592]
[1730658044241,0.3608,68371.0,68370.0,0.073157]
[1730658044439,0.3608,68371.0,68370.0,0.04379298]
[1730658044941,0.3708,68371.0,68368.0,0.13160492]
[1730658045535,0.3708,68371.0,68370.0,0.17657049]
[1730658046239,0.3718,68371.0,68370.0,0.17157049]
[1730658046438,0.3718,68371.0,68370.0,0.22986351]
[1730658046643,0.3628,68371.0,68370.0,0.23586351]
[1730658047144,0.001,68371.0,68370.0,0.17157049]
[1730658047437,0.001,68371.0,68370.0,0.18257049]
[1730658047438,0.002,68371.0,68370.0,0.18257049]
[1730658048441,0.002,68371.0,68370.0,0.24076594]
[1730658048942,0.002,68371.0,68370.0,0.19257049]
[1730658050539,0.002,68371.0,68370.0,0.23617816]
[1730658051544,0.002,68371.0,68370.0,0.19257049]
[1730658051937,0.002,68371.0,68370.0,0.07546412]
[1730658052143,0.09080377,68371.0,68370.0,0.07546412]
[1730658053152,0.04309294,68371.0,68370.0,0.07546412]
[1730658055043,0.04309294,68371.0,68370.0,0.17387761]
[1730658056449,0.04309294,68371.0,68370.0,0.53467761]
[1730658056646,0.04309294,68371.0,68370.0,0.17387761]
[1730658056847,0.04309294,68371.0,68370.0,0.53467761]
[1730658059060,0.002,68371.0,68370.0,0.57828528]
[1730658061264,0.002,68371.0,68370.0,0.53467761]
[1730658063241,0.002,68371.0,68370.0,0.48021349]
[1730658063449,0.002,68371.0,68370.0,0.50455705]
[1730658064553,0.002,68371.0,68370.0,0.4463616]
[1730658065251,0.002,68371.0,68370.0,0.06467113]
[1730658065252,0.075156,68371.0,68370.0,0.06467113]
[1730658065452,0.002,68371.0,68368.0,0.05822509]
[1730658065655,0.073159,68368.0,68367.0,0.05822509]
[1730658066051,0.073159,68368.0,68366.0,0.1506069]
[1730658066254,0.13826,68367.0,68366.0,0.1506069]
[1730658066449,0.13826,68367.0,68366.0,0.09238181]
[1730658067060,0.17860496,68367.0,68366.0,0.09238181]
[1730658067554,0.17960496,68367.0,68366.0,0.09638181]
[1730658068744,0.18060496,68367.0,68366.0,0.09638181]
[1730658069553,0.22746341,68367.0,68366.0,0.09638181]
[1730658070464,0.22759708,68367.0,68366.0,0.09638181]
[1730658072352,0.28107234,68367.0,68366.0,0.09638181]
[1730658072756,0.28107234,68367.0,68366.0,0.004]
[1730658072964,0.65779868,68367.0,68352.0,0.0645616]
[1730658073155,0.0645616,68358.0,68350.0,0.3608]
[1730658073360,0.073177,68351.0,68350.0,0.3608]
[1730658073552,0.04699212,68351.0,68350.0,0.3608]
[1730658073752,0.08733708,68351.0,68350.0,0.3608]
[1730658073953,0.073176,68352.0,68350.0,0.56245962]
[1730658074167,0.073176,68352.0,68351.0,0.26622122]
[1730658074573,0.073175,68353.0,68351.0,0.15705198]
[1730658074869,0.073175,68353.0,68352.0,0.18013107]
[1730658076671,0.073175,68353.0,68352.0,0.09244364]
[1730658077258,0.075175,68353.0,68352.0,0.09244364]
[1730658078165,0.075175,68353.0,68352.0,0.09644364]
[1730658078678,0.075175,68353.0,68352.0,0.16939912]
[1730658079571,0.075175,68353.0,68352.0,0.16931948]
[1730658079979,0.075175,68353.0,68352.0,0.07695548]
[1730658080281,0.075175,68353.0,68352.0,0.16929041]
[1730658080470,0.075175,68353.0,68352.0,0.07695548]
[1730658081677,0.075175,68353.0,68352.0,0.004]
[1730658083186,0.106775,68353.0,68352.0,0.004]
[1730658086982,0.467575,68353.0,68352.0,0.004]
[1730658087885,0.467575,68353.0,68352.0,0.04057537]
[1730658089387,0.465575,68353.0,68352.0,0.03657537]
[1730658089685,0.467575,68353.0,68352.0,0.04057537]
[1730658089888,0.435975,68353.0,68352.0,0.04057537]
[1730658090090,0.435975,68353.0,68352.0,0.10513697]
[1730658090981,0.001,68353.0,68352.0,0.58483592]
[1730658091182,0.073163,68365.0,68358.0,0.073169]
[1730658091488,0.0636,68369.0,68365.0,0.073162]
[1730658091789,0.0636,68369.0,68366.0,0.05830704]
[1730658092188,0.136758,68369.0,68367.0,0.05830704]
[1730658092388,0.104358,68369.0,68367.0,0.05830704]
[1730658092686,0.36299459,68372.0,68370.0,0.073156]
[1730658092892,0.36299459,68372.0,68371.0,0.09837665]
[1730658094182,0.36399459,68372.0,68371.0,0.09837665]
[1730658094380,0.36399459,68372.0,68371.0,0.10237665]
[1730658094594,0.36399459,68372.0,68371.0,0.16069284]
[1730658096681,0.36399459,68372.0,68371.0,0.19507927]
[1730658098798,0.36399459,68372.0,68371.0,0.13676308]
[1730658099189,0.36399459,68372.0,68371.0,0.03838643]
[1730658099994,0.36399459,68372.0,68371.0,0.16986783]
[1730658100600,0.36399459,68372.0,68371.0,0.09671183]
[1730658102800,0.00319459,68372.0,68371.0,0.09671183]
[1730658103295,0.07634859,68372.0,68371.0,0.0623254]
[1730658103600,0.07634859,68372.0,68371.0,0.004]
[1730658106184,0.07316,68367.0,68350.0,0.3608]
[1730658106390,0.073175,68353.0,68350.0,0.3608]
[1730658106989,0.073175,68353.0,68352.0,0.07190132]
[1730658109001,0.074175,68353.0,68352.0,0.07290132]
[1730658109300,0.075175,68353.0,68352.0,0.07390132]
[1730658109689,0.075175,68353.0,68352.0,0.14707732]
[1730658109690,0.002,68353.0,68352.0,0.14707732]
[1730658109908,0.075175,68353.0,68352.0,0.07390132]
[1730658112401,0.075175,68353.0,68352.0,0.43470132]
[1730658114104,0.002,68353.0,68352.0,0.43470132]
[1730658115107,0.035,68353.0,68352.0,0.43470132]
[1730658115491,0.108175,68353.0,68352.0,0.43470132]
[1730658117307,0.108175,68353.0,68352.0,0.52748749]
[1730658119513,0.108175,68353.0,68352.0,0.43470132]
[1730658122605,0.035,68353.0,68352.0,0.60625397]
[1730658123004,0.035,68353.0,68352.0,0.53307797]
[1730658123205,0.035,68353.0,68352.0,0.43470132]
[1730658123206,0.108175,68353.0,68352.0,0.43470132]
[1730658124409,0.108175,68353.0,68352.0,0.39937537]
[1730658124615,0.073181,68347.0,68346.0,0.00076]
[1730658124804,0.07319,68339.0,68338.0,0.3608]
[1730658125009,0.3958,68353.0,68338.0,0.45917665]
[1730658125210,0.169896,68352.0,68340.0,0.073189]
[1730658125417,0.073184,68345.0,68340.0,0.073189]
[1730658126110,0.001,68347.0,68340.0,0.073189]
[1730658126312,0.073185,68344.0,68340.0,0.074189]
[1730658126514,0.073185,68344.0,68341.0,0.0923827]
[1730658126718,0.073185,68344.0,68340.0,0.074189]
[1730658126916,0.001,68352.0,68351.0,0.073177]
[1730658127115,0.001,68352.0,68351.0,0.62473635]
[1730658127623,0.001,68352.0,68351.0,0.71226892]
[1730658127918,0.12918,68369.0,68352.0,0.073175]
[1730658128122,0.073168,68359.0,68353.0,0.0923827]
[1730658128323,0.073168,68359.0,68354.0,0.0923827]
[1730658128621,0.073168,68359.0,68355.0,0.0923827]
[1730658128827,0.073168,68359.0,68356.0,0.0923827]
[1730658129023,0.073168,68359.0,68351.0,0.54670922]
[1730658129324,0.073168,68359.0,68358.0,0.3608]
[1730658129727,0.073168,68359.0,68358.0,0.45255725]
[1730658130018,0.13018,68369.0,68358.0,0.45255725]
[1730658130218,0.073167,68361.0,68358.0,0.3608]
[1730658130413,0.073167,68361.0,68359.0,0.09180443]
[1730658130625,0.073167,68361.0,68358.0,0.3608]
[1730658130815,0.002,68359.0,68358.0,0.3608]
[1730658131012,0.002,68359.0,68358.0,0.45260135]
[1730658131213,0.001,68359.0,68358.0,0.45260135]
[1730658131425,0.074167,68361.0,68358.0,0.45260135]
[1730658131723,0.075167,68361.0,68359.0,0.09280135]
[1730658131914,0.074167,68361.0,68360.0,0.09180135]
[1730658132426,0.073167,68361.0,68360.0,0.09180135]
[1730658132730,0.074167,68361.0,68360.0,0.09180135]
[1730658132910,0.001,68361.0,68360.0,0.09180135]
[1730658133110,0.001,68361.0,68360.0,0.16496835]
[1730658133716,0.001,68361.0,68360.0,0.25250092]
[1730658133916,0.002,68361.0,68360.0,0.25350092]
[1730658136246,0.002,68361.0,68360.0,0.28911222]
[1730658136643,0.002,68361.0,68360.0,0.20157965]
[1730658136835,0.002,68361.0,68360.0,0.28911222]
[1730658137139,0.002,68361.0,68360.0,0.20157965]
[1730658137442,0.002,68361.0,68360.0,0.1097783]
[1730658137641,0.002,68361.0,68360.0,0.20156768]
[1730658138235,0.002,68361.0,68360.0,0.31096635]
[1730658139732,0.002,68361.0,68360.0,0.74980635]
[1730658140040,0.3608,68371.0,68370.0,0.073157]
[1730658140243,0.3608,68371.0,68370.0,0.16494638]
[1730658141634,0.44884522,68371.0,68370.0,0.073157]
[1730658143045,0.40254193,68371.0,68370.0,0.074157]
[1730658143848,0.40254193,68371.0,68370.0,0.001]
[1730658144243,0.40354193,68371.0,68370.0,0.002]
[1730658144744,0.40354193,68371.0,68370.0,0.03024122]
[1730658145041,0.40354193,68371.0,68370.0,0.002]
[1730658147039,0.04274193,68371.0,68370.0,0.002]
[1730658149843,0.002,68371.0,68370.0,0.002]
[1730658151242,0.075156,68371.0,68370.0,0.002]
[1730658153844,0.073163,68364.0,68363.0,0.3608]
[1730658154536,0.3608,68366.0,68361.0,0.07298]
[1730658154736,0.0308,68363.0,68359.0,0.07298]
[1730658154936,0.073167,68360.0,68358.0,0.07298]
[1730658155243,0.073167,68360.0,68359.0,0.09176071]
[1730658155847,0.073167,68360.0,68348.0,0.56197182]
[1730658155848,0.79964,68360.0,68358.0,0.07301516]
[1730658156046,0.70702465,68359.0,68358.0,0.002]
[1730658156746,0.74763966,68359.0,68358.0,0.001]
[1730658157546,0.74763966,68359.0,68345.0,0.073183]
[1730658157547,0.073182,68346.0,68345.0,0.073183]
[1730658157747,0.3608,68351.0,68344.0,0.00219465]
[1730658157949,0.0307,68345.0,68344.0,0.00219465]
[1730658158749,0.103883,68345.0,68344.0,0.00219465]
[1730658159144,0.104883,68345.0,68344.0,0.00319465]
[1730658159853,0.103883,68345.0,68344.0,0.00319465]
[1730658160059,0.104883,68345.0,68344.0,0.001]
[1730658160546,0.105883,68345.0,68344.0,0.001]
[1730658162050,0.073185,68343.0,68342.0,0.3608]
[1730658163254,0.074185,68343.0,68342.0,0.3618]
[1730658164451,0.075185,68343.0,68342.0,0.3618]
[1730658165059,0.075185,68343.0,68339.0,0.10148069]
[1730658165060,0.073188,68341.0,68340.0,0.3608]
[1730658167354,0.074188,68341.0,68340.0,0.3608]
[1730658168263,0.075188,68341.0,68340.0,0.3618]
[1730658168751,0.075188,68341.0,68340.0,0.001]
[1730658168955,0.074188,68341.0,68340.0,0.3618]
[1730658169255,0.075188,68341.0,68340.0,0.3618]
[1730658170156,0.075188,68341.0,68340.0,0.001]
[1730658170457,0.075188,68341.0,68340.0,0.3618]
[1730658176363,0.075188,68341.0,68340.0,0.001]
[1730658178154,0.075189,68341.0,68340.0,0.09233098]
[1730658180471,0.002,68341.0,68340.0,0.16551998]
[1730658182267,0.002,68341.0,68340.0,0.52631998]
[1730658183064,0.002,68341.0,68340.0,0.63495275]
[1730658183976,0.002,68341.0,68340.0,1.07391275]
[1730658184272,0.002,68341.0,68340.0,0.86323079]
[1730658184479,0.002,68341.0,68340.0,0.76120128]
[1730658184771,0.073178,68350.0,68344.0,0.073184]
[1730658184967,0.073178,68350.0,68349.0,0.06459186]
[1730658185173,0.073178,68350.0,68349.0,0.15592284]
[1730658185362,0.073178,68350.0,68349.0,0.26461089]
[1730658186864,0.073178,68350.0,68349.0,0.26444942]
[1730658187062,0.074178,68350.0,68349.0,0.26444942]
[1730658187462,0.075178,68350.0,68349.0,0.26444942]
[1730658187667,0.074178,68350.0,68349.0,0.26444942]
[1730658187865,0.075178,68350.0,68349.0,0.26444942]
[1730658188175,0.001,68350.0,68349.0,0.13118372]
[1730658188486,0.001,68350.0,68349.0,0.06659186]
[1730658188487,0.002,68350.0,68349.0,0.06659186]
[1730658188674,0.002,68350.0,68349.0,0.09462989]
[1730658189470,0.002,68350.0,68349.0,0.23240075]
[1730658190871,0.00219492,68357.0,68349.0,0.52002175]
[1730658191078,0.00219492,68357.0,68356.0,0.42539186]
[1730658192176,0.00219492,68357.0,68356.0,0.49856386]
[1730658192384,0.001,68357.0,68356.0,0.92886372]
[1730658192677,0.001,68357.0,68356.0,0.93744386]
[1730658193072,0.002,68357.0,68356.0,0.93744386]
[1730658193763,0.002,68357.0,68356.0,0.93944386]
[1730658195275,0.002,68357.0,68356.0,0.50056386]
[1730658195970,0.002,68357.0,68356.0,0.69854083]
[1730658196372,0.002,68357.0,68356.0,0.5908834]
[1730658196774,0.002,68357.0,68356.0,0.69852272]
[1730658197487,0.002,68357.0,68356.0,0.61822858]
[1730658198281,0.002,68357.0,68356.0,0.61821655]
[1730658200378,0.002,68357.0,68356.0,0.25741655]
[1730658200681,0.002,68357.0,68356.0,0.61821655]
[1730658200877,0.002,68357.0,68356.0,0.25741655]
[1730658201087,0.002,68357.0,68356.0,0.61821655]
[1730658202473,0.002,68357.0,68356.0,0.25741655]
[1730658202683,0.002,68357.0,68356.0,0.61821655]
[1730658202883,0.002,68357.0,68356.0,0.25741655]
[1730658203082,0.002,68357.0,68356.0,0.16710904]
[1730658203585,0.002,68357.0,68356.0,0.52790904]
[1730658203976,0.002,68357.0,68356.0,0.16710904]
[1730658204179,0.002,68357.0,68356.0,0.52790904]
[1730658204983,0.002,68357.0,68356.0,0.16710904]
[1730658205178,0.002,68357.0,68356.0,0.52790904]
[1730658205884,0.002,68357.0,68356.0,0.58625617]
[1730658206385,0.002,68357.0,68356.0,0.22545617]
[1730658206684,0.002,68357.0,68356.0,0.52790904]
[1730658207180,0.002,68357.0,68356.0,0.16710904]
[1730658207385,0.002,68357.0,68356.0,0.52790904]
[1730658208487,0.002,68357.0,68356.0,0.58625617]
[1730658208986,0.002,68357.0,68356.0,0.52790904]
[1730658209180,0.002,68357.0,68356.0,0.58625617]
[1730658209388,0.002,68357.0,68356.0,0.22545617]
[1730658209579,0.002,68357.0,68356.0,0.58625617]
[1730658210981,0.002,68357.0,68356.0,0.61827877]
[1730658211483,0.002,68357.0,68356.0,0.72600007]
[1730658212493,0.002,68357.0,68356.0,0.72601593]
[1730658213189,0.002,68357.0,68356.0,0.36521593]
[1730658213387,0.002,68357.0,68356.0,0.72601593]
[1730658213592,0.002,68357.0,68356.0,0.70590562]
[1730658213788,0.002,68357.0,68356.0,0.61828785]
[1730658214088,0.0331,68369.0,68356.0,1.15622945]
[1730658214292,0.3608,68371.0,68368.0,0.21076298]
[1730658214500,0.3608,68371.0,68370.0,0.07301212]
[1730658214792,0.3608,68371.0,68370.0,0.09037881]
[1730658215181,0.0323,68378.0,68370.0,0.16353581]
[1730658215387,0.073151,68376.0,68372.0,0.07302131]
[1730658215587,0.073151,68376.0,68375.0,0.06459186]
[1730658217791,0.094151,68376.0,68375.0,0.06459186]
[1730658218387,0.089151,68376.0,68375.0,0.06459186]
[1730658219184,0.078151,68376.0,68375.0,0.06459186]
[1730658219389,0.083151,68376.0,68375.0,0.06459186]
[1730658220494,0.083151,68376.0,68375.0,0.22781479]